[Event "VII Lorca Open 2018"]
[Site "Lorca"]
[Date "2018.12.27"]
[Round "2"]
[White "Nasuta, Grzegorz"]
[Black "Roig Aguilar, Alejandro"]
[Result "1-0"]
[ECO "B90"]
[WhiteElo "2530"]
[BlackElo "2283"]
[Annotator "ChessBase"]
[PlyCount "39"]
[EventDate "2018.12.26"]
[EventType "swiss"]
[EventCountry "ESP"]
[SourceTitle "playchess.com"]
[Source "ChessBase"]
[SourceQuality "1"]
[TimeControl "5400+30"]

1. e4 {[%emt 0:00:32]} c5 {[%emt 0:04:08]} 2. Nf3 {[%emt 0:00:10]} d6 {[%emt 0:00:15]} 3. d4 {[%emt 0:01:03]} Nf6 {[%emt 0:00:16]} 4. Nc3 {[%emt 0:10:16]} cxd4 {[%emt 0:00:16]} 5. Nxd4 {[%emt 0:00:06]} a6 {[%emt 0:00:05]} 6. h3 {[%emt 0:01:16]} e5 {[%emt 0:00:41]} 7. Nb3 {[%emt 0:02:41]} Be6 {[%emt 0:09:31]} 8. Be3 {[%emt 0:02:55]} Be7 {[%emt 0:06:56]} 9. Qf3 {[%emt 0:00:09]} Nbd7 {[%emt 0:14:30]} 10. O-O-O {[%emt 0:03:42]} Rc8 {[%emt 0:06:53]} 11. g4 {[%emt 0:06:27]} g6 {[%emt 0:08:04]} 12. g5 {[%emt 0:05:52]} Nh5 {[%emt 0:00:50]} 13. h4 {[%emt 0:00:07]} Rxc3 {[%emt 0:05:03]} 14. bxc3 {[%emt 0:00:13]} Qc7 {[%emt 0:00:40]} 15. Bh3 {[%emt 0:31:23]} Qxc3 {[%emt 0:16:52]} 16. Bxe6 {[%emt 0:00:56]} fxe6 {[%emt 0:00:40]} 17. Rd3 {[%emt 0:01:27]} Qc4 {[%emt 0:00:49]} 18. Kb2 {[%emt 0:17:00]} d5 {[%emt 0:17:10]} 19. exd5 {[%emt 0:08:51]} e4 {[%emt 0:04:03]} 20. Qg4 {[%emt 0:00:01]} 1-0

[Event "VII Lorca Open 2018"]
[Site "Lorca"]
[Date "2018.12.27"]
[Round "2"]
[White "Pap, Misa"]
[Black "Terbe, Julianna"]
[Result "1-0"]
[ECO "B22"]
[WhiteElo "2480"]
[BlackElo "2272"]
[Annotator "ChessBase"]
[PlyCount "123"]
[EventDate "2018.12.26"]
[EventType "swiss"]
[EventCountry "ESP"]
[SourceTitle "playchess.com"]
[Source "ChessBase"]
[SourceQuality "1"]
[TimeControl "5400+30"]

1. e4 {[%emt 0:00:00]} c5 {[%emt 0:02:00]} 2. Nf3 {[%emt 0:00:03]} Nc6 {[%emt 0:00:11]} 3. c3 {[%emt 0:00:21]} d5 {[%emt 0:00:37]} 4. exd5 {[%emt 0:00:07]} Qxd5 {[%emt 0:00:06]} 5. d4 {[%emt 0:03:09]} Bg4 {[%emt 0:00:49]} 6. Be2 {[%emt 0:00:08]} cxd4 {[%emt 0:00:09]} 7. cxd4 {[%emt 0:00:09]} e6 {[%emt 0:00:05]} 8. Nc3 {[%emt 0:02:12]} Qa5 {[%emt 0:00:25]} 9. h3 {[%emt 0:00:23]} Bxf3 {[%emt 0:00:28]} 10. Bxf3 {[%emt 0:00:13]} Bb4 {[%emt 0:00:07]} 11. O-O {[%emt 0:02:21]} Nge7 {[%emt 0:00:26]} 12. Bd2 {[%emt 0:26:27]} O-O {[%emt 0:11:58]} 13. a3 {[%emt 0:02:57]} Bd6 {[%emt 0:00:20]} 14. d5 {[%emt 0:01:03]} exd5 {[%emt 0:07:30]} 15. Nxd5 {[%emt 0:00:07]} Qd8 {[%emt 0:00:41]} 16. Nxe7+ {[%emt 0:08:27]} Qxe7 {[%emt 0:02:32]} 17. Re1 {[%emt 0:00:34]} Qf6 {[%emt 0:03:19]} 18. Bc3 {[%emt 0:01:37]} Be5 {[%emt 0:09:08]} 19. Bxe5 {[%emt 0:03:29]} Nxe5 {[%emt 0:00:02]} 20. Bxb7 {[%emt 0:00:23]} Rad8 {[%emt 0:04:04]} 21. Qc2 {[%emt 0:01:52]} Nd3 {[%emt 0:02:09]} 22. Re2 {[%emt 0:01:41]} Nf4 {[%emt 0:01:02]} 23. Re3 {[%emt 0:03:59]} Rb8 {[%emt 0:05:59]} 24. Qe4 {[%emt 0:09:49]} Qxb2 {[%emt 0:04:47]} 25. Rb1 {[%emt 0:00:08]} Qa2 {[%emt 0:00:43]} 26. Rb5 {[%emt 0:08:07]} Ne6 {[%emt 0:08:42]} 27. Qa4 {[%emt 0:08:29]} Qa1+ {[%emt 0:13:23]} 28. Kh2 {[%emt 0:00:06]} Nd4 {[%emt 0:04:35]} 29. Rb4 {[%emt 0:02:19]} Nf5 {[%emt 0:04:42]} 30. Re2 {[%emt 0:00:29]} Nd6 {[%emt 0:01:59]} 31. Bd5 {[%emt 0:00:40]} Rxb4 {[%emt 0:02:44]} 32. Qxb4 {[%emt 0:00:06]} Qf6 {[%emt 0:00:19]} 33. Qc5 {[%emt 0:01:31]} Re8 {[%emt 0:01:44]} 34. Rxe8+ {[%emt 0:02:28]} Nxe8 {[%emt 0:00:01]} 35. Qc8 {[%emt 0:01:39]} Kf8 {[%emt 0:00:49]} 36. Qc5+ {[%emt 0:01:31]} Qe7 {[%emt 0:01:44]} 37. Qa5 {[%emt 0:01:30]} Qc7+ {[%emt 0:02:38]} 38. Qxc7 {[%emt 0:00:02]} Nxc7 {[%emt 0:00:05]} 39. Bc4 {[%emt 0:00:03]} Ke7 {[%emt 0:00:07]} 40. Kg3 {[%emt 0:00:04]} Ne6 {[%emt 0:01:01]} 41. Kf3 {[%emt 0:00:11]} Nc5 {[%emt 0:01:30]} 42. Ke3 {[%emt 0:00:12]} f6 {[%emt 0:00:05]} 43. Kd4 {[%emt 0:00:50]} Kd6 {[%emt 0:00:01]} 44. Bg8 {[%emt 0:01:50]} h6 {[%emt 0:00:14]} 45. h4 {[%emt 0:00:54]} Nd7 {[%emt 0:01:41]} 46. Bh7 {[%emt 0:02:39]} Ne5 {[%emt 0:01:00]} 47. Bf5 {[%emt 0:00:15]} Nc6+ {[%emt 0:02:14]} 48. Kc4 {[%emt 0:00:19]} Nb8 {[%emt 0:00:44]} 49. h5 {[%emt 0:01:08]} Nc6 {[%emt 0:00:37]} 50. Be4 {[%emt 0:01:47]} Nb8 {[%emt 0:01:13]} 51. f4 {[%emt 0:00:33]} Nd7 {[%emt 0:00:23]} 52. Kb5 {[%emt 0:00:22]} Kc7 {[%emt 0:01:05]} 53. Bf5 {[%emt 0:00:36]} Nb8 {[%emt 0:00:58]} 54. Kc5 {[%emt 0:00:12]} Nc6 {[%emt 0:00:22]} 55. Kd5 {[%emt 0:00:33]} Nd8 {[%emt 0:00:27]} 56. Bg4 {[%emt 0:00:37]} a5 {[%emt 0:00:43]} 57. Kc5 {[%emt 0:02:12]} Nc6 {[%emt 0:00:24]} 58. Bf3 {[%emt 0:00:08]} Nd8 {[%emt 0:00:14]} 59. Bd5 {[%emt 0:00:26]} a4 {[%emt 0:00:35]} 60. g3 {[%emt 0:01:03]} f5 {[%emt 0:00:21]} 61. Bc4 {[%emt 0:00:51]} Nc6 {[%emt 0:00:29]} 62. Bb5 {[%emt 0:00:12]} 1-0

[Event "VII Lorca Open 2018"]
[Site "Lorca"]
[Date "2018.12.27"]
[Round "2"]
[White "Nayhebaver, Martin"]
[Black "Kovacevic, Slobodan"]
[Result "1-0"]
[ECO "B42"]
[WhiteElo "2460"]
[BlackElo "2245"]
[Annotator "ChessBase"]
[PlyCount "71"]
[EventDate "2018.12.26"]
[EventType "swiss"]
[EventCountry "ESP"]
[SourceTitle "playchess.com"]
[Source "ChessBase"]
[SourceQuality "1"]
[TimeControl "5400+30"]

1. e4 {[%emt 0:00:00]} c5 {[%emt 0:02:07]} 2. Nf3 {[%emt 0:00:00]} e6 {[%emt 0:00:07]} 3. d4 {[%emt 0:00:22]} cxd4 {[%emt 0:00:27]} 4. Nxd4 {[%emt 0:00:09]} a6 {[%emt 0:00:32]} 5. Bd3 {[%emt 0:00:31]} Nf6 {[%emt 0:00:50]} 6. O-O {[%emt 0:02:09]} d6 {[%emt 0:01:22]} 7. c4 {[%emt 0:00:22]} b6 {[%emt 0:01:37]} 8. Nc3 {[%emt 0:01:10]} Bb7 {[%emt 0:00:19]} 9. f4 {[%emt 0:03:03]} Nc6 {[%emt 0:00:13]} 10. Be3 {[%emt 0:06:56]} Be7 {[%emt 0:06:08]} 11. Nc2 {[%emt 0:07:01]} O-O {[%emt 0:01:07]} 12. Rc1 {[%emt 0:04:06]} Rc8 {[%emt 0:02:14]} 13. Qe2 {[%emt 0:02:16]} Nd7 {[%emt 0:01:22]} 14. b4 {[%emt 0:02:11]} Ncb8 {[%emt 0:04:27]} 15. a3 {[%emt 0:11:09]} b5 {[%emt 0:07:17]} 16. Nd4 {[%emt 0:00:35]} bxc4 {[%emt 0:01:04]} 17. Bxc4 {[%emt 0:00:22]} Nf6 {[%emt 0:05:14]} 18. Bd3 {[%emt 0:11:36]} g6 {[%emt 0:12:28]} 19. Nb3 {[%emt 0:01:25]} Qd7 {[%emt 0:03:13]} 20. Rfd1 {[%emt 0:02:21]} Qe8 {[%emt 0:12:57]} 21. Na5 {[%emt 0:04:00]} Ba8 {[%emt 0:05:19]} 22. h3 {[%emt 0:04:34]} Nh5 {[%emt 0:09:28]} 23. e5 {[%emt 0:05:52]} d5 {[%emt 0:03:49]} 24. Bxa6 {[%emt 0:05:31]} Ng3 {[%emt 0:01:21]} 25. Qe1 {[%emt 0:03:43]} Nxa6 {[%emt 0:08:31]} 26. Qxg3 {[%emt 0:00:06]} Nxb4 27. axb4 {[%emt 0:01:10]} Bxb4 {[%emt 0:00:21]} 28. Bb6 {[%emt 0:00:45]} Rxc3 {[%emt 0:05:04]} 29. Rxc3 {[%emt 0:00:10]} Qb5 {[%emt 0:00:15]} 30. Bd4 {[%emt 0:01:30]} Qxa5 {[%emt 0:02:31]} 31. Rc2 {[%emt 0:01:35]} Be7 {[%emt 0:00:57]} 32. Ra1 {[%emt 0:01:03]} Qb5 {[%emt 0:01:54]} 33. f5 {[%emt 0:05:38]} Qb4 {[%emt 0:01:11]} 34. Rd1 {[%emt 0:00:06]} exf5 {[%emt 0:00:29]} 35. e6 {[%emt 0:04:19]} Bd6 {[%emt 0:00:34]} 36. exf7+ {[%emt 0:02:22]} 1-0

[Event "VII Lorca Open 2018"]
[Site "Lorca"]
[Date "2018.12.27"]
[Round "2"]
[White "Gomez Ledo, Roberto Carlos"]
[Black "Sreeshwan Maralakshikari"]
[Result "1/2-1/2"]
[ECO "D00"]
[WhiteElo "2448"]
[BlackElo "2244"]
[Annotator "NA"]
[PlyCount "153"]
[EventDate "2018.12.26"]
[EventType "swiss"]
[EventCountry "ESP"]
[SourceTitle "playchess.com"]
[Source "ChessBase"]
[SourceQuality "1"]
[TimeControl "5400+30"]

1. d4 {[%emt 0:00:00]} d5 {[%emt 0:00:00]} 2. Bf4 {[%emt 0:00:37]} Nf6 {[%emt 0:00:13]} 3. e3 {[%emt 0:00:29]} c5 {[%emt 0:00:03]} 4. c3 {[%emt 0:00:46]} Nc6 {[%emt 0:00:04]} 5. Nd2 {[%emt 0:00:54]} Bf5 {[%emt 0:00:31]} 6. Ngf3 {[%emt 0:01:10]} Qb6 {[%emt 0:00:55]} 7. Nh4 {[%emt 0:01:34]} Bd7 {[%emt 0:00:25]} 8. Qb3 {[%emt 0:00:48]} Qxb3 {[%emt 0:00:36]} 9. axb3 {[%emt 0:01:05]} Nh5 {[%emt 0:00:40]} 10. Bc7 {[%emt 0:13:08]} Rc8 {[%emt 0:01:24]} 11. Bg3 {[%emt 0:00:13]} Nxg3 {[%emt 1:30:39]} 12. hxg3 {[%emt 0:00:16]} b6 {[%emt 0:00:00]} 13. Bb5 {[%emt 0:07:04]} Rc7 {[%emt 0:00:00]} 14. O-O {[%emt 0:01:06]} e6 {[%emt 0:00:00]} 15. Nhf3 {[%emt 0:11:19]} Bd6 {[%emt 0:00:00]} 16. dxc5 {[%emt 0:00:56]} bxc5 {[%emt 0:00:00]} 17. Ra2 {[%emt 0:07:03]} Ke7 {[%emt 0:00:00]} 18. Rfa1 {[%emt 0:00:15]} Ra8 {[%emt 0:00:00]} 19. e4 {[%emt 0:02:56]} Rb7 {[%emt 0:00:00]} 20. Ba4 {[%emt 0:00:32]} h6 {[%emt 0:00:00]} 21. Re1 {[%emt 0:00:51]} Kf8 {[%emt 0:00:00]} 22. Rd1 {[%emt 0:00:41]} Ke7 {[%emt 0:00:00]} 23. exd5 {[%emt 0:05:09]} exd5 {[%emt 0:00:00]} 24. Nf1 {[%emt 0:00:10]} d4 {[%emt 0:00:00]} 25. N1d2 {[%emt 0:02:36]} Kf8 {[%emt 0:00:00]} 26. Nc4 {[%emt 0:03:18]} Be7 {[%emt 0:00:00]} 27. cxd4 {[%emt 0:01:53]} cxd4 {[%emt 0:00:00]} 28. Nxd4 {[%emt 0:00:45]} Nxd4 {[%emt 0:00:00]} 29. Rxd4 {[%emt 0:00:11]} Bxa4 {[%emt 0:00:00]} 30. Rxa4 {[%emt 0:03:45]} Rxb3 {[%emt 0:00:00]} 31. Rd7 {[%emt 0:00:40]} Rb4 {[%emt 0:00:00]} 32. Rxb4 Bxb4 {[%emt 0:00:00]} 33. Ne5 {[%emt 0:05:07]} Be7 {[%emt 0:00:00]} 34. Nc6 {[%emt 0:00:47]} Bc5 {[%emt 0:03:26]} 35. b4 {[%emt 0:01:46]} Bb6 {[%emt 0:00:12]} 36. Rb7 {[%emt 0:01:31]} f6 {[%emt 0:03:16]} 37. Kf1 {[%emt 0:01:13]} Rc8 {[%emt 0:03:20]} 38. b5 {[%emt 0:00:24]} Rc7 {[%emt 0:00:56]} 39. Rxc7 Bxc7 {[%emt 0:00:03]} 40. Nxa7 {[%emt 0:01:03]} Kf7 {[%emt 0:00:28]} 41. g4 {[%emt 0:04:51]} Ke6 {[%emt 0:00:40]} 42. Nc6 {[%emt 0:00:31]} Bb6 {[%emt 0:01:34]} 43. Ke2 {[%emt 0:02:13]} Kd6 {[%emt 0:00:15]} 44. f3 {[%emt 0:01:26]} Kc5 {[%emt 0:00:51]} 45. Ne7 {[%emt 0:00:27]} Kxb5 {[%emt 0:00:36]} 46. Nf5 {[%emt 0:00:06]} g6 {[%emt 0:00:03]} 47. Ne7 {[%emt 0:01:16]} h5 {[%emt 0:01:04]} 48. gxh5 {[%emt 0:05:18]} gxh5 {[%emt 0:00:04]} 49. Kd3 {[%emt 0:00:19]} Kc5 {[%emt 0:01:02]} 50. Ke4 {[%emt 0:00:20]} Kc4 {[%emt 0:00:27]} 51. Ng8 {[%emt 0:01:58]} Bd8 {[%emt 0:00:25]} 52. Kf5 {[%emt 0:04:02]} Kd3 {[%emt 0:00:28]} 53. Nxf6 {[%emt 0:01:35]} Ke2 {[%emt 0:00:20]} 54. Ne4 {[%emt 0:06:51]} Kf1 {[%emt 0:00:15]} 55. g4 {[%emt 0:01:04]} hxg4 {[%emt 0:00:02]} 56. fxg4 {[%emt 0:00:01]} Bh4 {[%emt 0:00:01]} 57. Kg6 {[%emt 0:01:25]} Kg2 {[%emt 0:00:02]} 58. Kh5 {[%emt 0:00:06]} Bd8 {[%emt 0:00:06]} 59. Kg6 {[%emt 0:00:32]} Kf3 {[%emt 0:00:03]} 60. Kf5 {[%emt 0:00:05]} Be7 {[%emt 0:00:09]} 61. Ng5+ {[%emt 0:00:20]} Kg3 {[%emt 0:00:07]} 62. Nf7 {[%emt 0:00:13]} Kf3 {[%emt 0:00:43]} 63. Ne5+ {[%emt 0:00:08]} Kg3 {[%emt 0:00:04]} 64. Nc6 {[%emt 0:00:45]} Bh4 {[%emt 0:00:06]} 65. Nd4 {[%emt 0:00:17]} Bd8 {[%emt 0:00:05]} 66. Ne2+ {[%emt 0:00:16]} Kf3 {[%emt 0:00:04]} 67. Nf4 {[%emt 0:00:07]} Kg3 {[%emt 0:00:04]} 68. Ne6 {[%emt 0:00:12]} Be7 {[%emt 0:00:03]} 69. Ng5 {[%emt 0:00:37]} Bd8 {[%emt 0:00:04]} 70. Ne6 {[%emt 0:00:25]} Be7 {[%emt 0:00:07]} 71. Ng7 {[%emt 0:00:01]} Bd8 {[%emt 0:00:05]} 72. Nh5+ {[%emt 0:00:10]} Kf3 {[%emt 0:00:05]} 73. Nf4 {[%emt 0:00:05]} Kg3 {[%emt 0:00:04]} 74. Nd5 {[%emt 0:02:31]} Kf3 {[%emt 0:00:04]} 75. Nf6 {[%emt 0:00:05]} Bxf6 {[%emt 0:00:02]} 76. Kxf6 {[%emt 0:00:09]} Kxg4 {[%emt 0:00:03]} 77. Ke5 {[%emt 0:03:42]} 1/2-1/2

[Event "VII Lorca Open 2018"]
[Site "Lorca"]
[Date "2018.12.27"]
[Round "2"]
[White "Morozov, Nichita"]
[Black "Bharath Subramaniyam H"]
[Result "1-0"]
[ECO "E10"]
[WhiteElo "2439"]
[BlackElo "2234"]
[Annotator "NA"]
[PlyCount "80"]
[EventDate "2018.12.26"]
[EventType "swiss"]
[EventCountry "ESP"]
[SourceTitle "playchess.com"]
[Source "ChessBase"]
[SourceQuality "1"]
[TimeControl "5400+30"]

1. d4 {[%emt 0:00:00]} Nf6 {[%emt 0:00:00]} 2. c4 {[%emt 0:00:00]} e6 {[%emt 0:00:09]} 3. Nf3 {[%emt 0:00:00]} c5 {[%emt 0:00:10]} 4. d5 {[%emt 0:00:00]} exd5 {[%emt 0:00:08]} 5. cxd5 {[%emt 0:00:00]} d6 {[%emt 0:00:11]} 6. e4 {[%emt 0:00:00]} g6 {[%emt 0:00:24]} 7. Bd3 {[%emt 0:00:00]} Bg7 {[%emt 0:00:24]} 8. O-O {[%emt 0:00:03] E10: Blumenfeld Gambit} O-O {[%emt 0:00:26]} 9. h3 {[%emt 0:00:01]} (9. Nbd2 Re8 10. Re1 Bg4 11. Rb1 Nbd7 12. Qc2 Rc8 13. b3 Bxf3 14. Nxf3 Ng4 15. h3 Nge5 16. Nxe5 Bxe5 17. Be3 {½-½ (54) Kuljasevic,D (2578)-Cheparinov,I (2700) Legnica 2013}) 9... a6 {[%emt 0:21:58]} 10. a4 {[%emt 0:00:07]} Nbd7 {[%emt 0:00:28]} 11. Na3 {[%emt 0:01:22]} Rb8 $146 {[%emt 0:09:06]} ({Predecessor:} 11... Ne8 12. Nc4 Nb6 {1-0 (42) Stohl,I (2556)-Tolnai,T (2495) Hungary 2003}) 12. Bf4 {[%emt 0:10:01]} Ne8 {[%emt 0:00:50]} 13. Rb1 {[%emt 0:00:13]} Qe7 {[%emt 0:07:08]} 14. Re1 {[%emt 0:03:20]} f6 {[%emt 0:03:36]} 15. Bf1 {[%emt 0:05:21]} Ne5 {[%emt 0:00:37]} 16. b4 {[%emt 0:05:28]} cxb4 {[%emt 0:10:24]} 17. Rxb4 {[%emt 0:00:18]} f5 {[%emt 0:01:57]} 18. Nxe5 {[%emt 0:02:19]} dxe5 {[%emt 0:00:43]} 19. Bd2 {[%emt 0:00:03]} Nd6 {[%emt 0:00:39]} 20. exf5 {[%emt 0:00:36]} Bxf5 {[%emt 0:00:46]} 21. Rb6 {[%emt 0:03:00]} Ne4 {[%emt 0:13:39]} 22. Bb4 {[%emt 0:02:03]} Qd8 $16 {[%emt 0:01:03]} (22... Qh4 $11 {keeps the balance.} 23. Qe2 Rf7) 23. Nc4 {[%emt 0:02:06]} Nxf2 $1 {[%emt 0:00:53]} 24. Qf3 {[%emt 0:05:31]} Be4 {[%emt 0:05:36]} 25. Qe3 {[%emt 0:00:30]} Rf4 {[%emt 0:01:49]} 26. Bd6 {[%emt 0:05:13]} Rc8 {[%emt 0:12:09]} 27. Rxb7 {[%emt 0:04:37]} Rf5 {[%emt 0:00:14]} 28. Nb6 {[%emt 0:06:24]} Ra8 {[%emt 0:02:02]} 29. Bc5 {[%emt 0:10:17]} Qh4 {[%emt 0:02:01]} 30. Be7 {[%emt 0:03:11]} g5 {[%emt 0:02:16]} 31. Re2 {[%emt 0:19:40]} Nh1 {[%emt 0:01:06]} 32. Nxa8 {[%emt 0:01:33]} Bxd5 {[%emt 0:00:23]} 33. Rb4 {[%emt 0:02:46]} e4 {[%emt 0:00:43]} 34. Re1 {[%emt 0:02:11]} Nf2 {[%emt 0:01:06]} 35. Bc4 {[%emt 0:03:19]} Nxh3+ {[%emt 0:01:41]} 36. gxh3 {[%emt 0:00:03]} Bxc4 {[%emt 0:00:11]} 37. Rxc4 {[%emt 0:00:04]} Rf3 {[%emt 0:00:12]} 38. Qxf3 {[%emt 0:00:04]} Qxe1+ {[%emt 0:00:01]} 39. Qf1 {[%emt 0:00:05]} Qg3+ {[%emt 0:00:16]} 40. Kh1 {[%emt 0:00:04]} Be5 {[%emt 0:00:53]} 1-0

[Event "VII Lorca Open 2018"]
[Site "Lorca"]
[Date "2018.12.27"]
[Round "2"]
[White "Solozhenkin, Evgeniy"]
[Black "Martinez Fernandez, Adrian"]
[Result "1/2-1/2"]
[ECO "B92"]
[WhiteElo "2427"]
[BlackElo "2212"]
[Annotator "NA"]
[PlyCount "101"]
[EventDate "2018.12.26"]
[EventType "swiss"]
[EventCountry "ESP"]
[SourceTitle "playchess.com"]
[Source "ChessBase"]
[SourceQuality "1"]
[TimeControl "5400+30"]

1. e4 {[%emt 0:04:12]} c5 {[%emt 0:00:00]} 2. Nf3 {[%emt 0:00:03]} d6 {[%emt 0:00:00]} 3. d4 {[%emt 0:00:14]} Nf6 {[%emt 0:00:00]} 4. Nc3 {[%emt 0:00:13]} cxd4 {[%emt 0:00:18]} 5. Nxd4 {[%emt 0:00:05]} a6 {[%emt 0:00:14]} 6. Be2 {[%emt 0:00:52]} e5 {[%emt 0:00:19]} 7. Nf3 {[%emt 0:00:04]} Be7 {[%emt 0:01:27]} 8. Bg5 {[%emt 0:03:32]} Nbd7 {[%emt 0:00:11]} 9. a4 {[%emt 0:00:43]} h6 {[%emt 0:00:57]} 10. Be3 {[%emt 0:01:01]} O-O {[%emt 0:07:09]} 11. Nd2 {[%emt 0:04:08]} Qc7 {[%emt 0:08:38]} 12. O-O {[%emt 0:17:33]} b6 {[%emt 0:13:44]} 13. Bc4 {[%emt 0:05:48]} Bb7 {[%emt 0:01:34]} 14. f3 {[%emt 0:05:11]} Nc5 {[%emt 0:07:40]} 15. Qe2 {[%emt 0:05:05]} Rfd8 {[%emt 0:06:59]} 16. Rad1 {[%emt 0:12:44]} d5 {[%emt 0:15:38]} 17. exd5 {[%emt 0:00:27]} Nxd5 {[%emt 0:00:09]} 18. Nxd5 {[%emt 0:00:49]} Bxd5 {[%emt 0:00:08]} 19. Ne4 {[%emt 0:00:47]} Qc6 {[%emt 0:03:25]} 20. Rxd5 {[%emt 0:03:00]} Rxd5 {[%emt 0:00:12]} 21. Bxd5 {[%emt 0:00:03]} Qxd5 {[%emt 0:00:11]} 22. Nc3 {[%emt 0:00:05]} Qe6 {[%emt 0:04:59]} 23. Rd1 {[%emt 0:00:23]} Rc8 {[%emt 0:06:49]} 24. Nd5 {[%emt 0:07:14]} Bg5 {[%emt 0:06:01]} 25. Bxg5 hxg5 {[%emt 0:00:07]} 26. b4 {[%emt 0:05:37]} Rd8 {[%emt 0:09:17]} 27. Qd2 {[%emt 0:08:30]} Nb7 {[%emt 0:00:10]} 28. c4 {[%emt 0:00:15]} g4 {[%emt 0:01:57]} 29. Qg5 {[%emt 0:03:39]} gxf3 {[%emt 0:00:37]} 30. Ne7+ {[%emt 0:01:39]} Kf8 {[%emt 0:00:54]} 31. Ng6+ {[%emt 0:03:02]} fxg6 {[%emt 0:01:43]} 32. Rxd8+ Nxd8 {[%emt 0:00:02]} 33. Qxd8+ {[%emt 0:00:10]} Kf7 {[%emt 0:00:04]} 34. Qc7+ {[%emt 0:00:20]} Kg8 {[%emt 0:02:11]} 35. gxf3 {[%emt 0:00:12]} Qf6 {[%emt 0:00:11]} 36. Qc8+ {[%emt 0:03:18]} Kh7 {[%emt 0:00:14]} 37. Qh3+ {[%emt 0:00:39]} Kg8 {[%emt 0:00:02]} 38. Qg4 {[%emt 0:00:07]} Qd6 {[%emt 0:00:59]} 39. c5 {[%emt 0:01:56]} Qd1+ {[%emt 0:01:02]} 40. Kf2 {[%emt 0:00:59]} bxc5 {[%emt 0:01:18]} 41. Qc4+ {[%emt 0:00:31]} Kh7 {[%emt 0:00:26]} 42. bxc5 {[%emt 0:00:04]} Qd2+ {[%emt 0:00:10]} 43. Kg3 {[%emt 0:00:07]} Qg5+ {[%emt 0:01:38]} 44. Qg4 {[%emt 0:00:15]} Qc1 {[%emt 0:00:12]} 45. Qh4+ {[%emt 0:02:57]} Kg8 {[%emt 0:00:01]} 46. Qe7 {[%emt 0:00:02]} Qg1+ {[%emt 0:01:00]} 47. Kh3 {[%emt 0:00:05]} Qf1+ {[%emt 0:00:03]} 48. Kg3 {[%emt 0:01:45]} Qg1+ {[%emt 0:00:04]} 49. Kh3 {[%emt 0:00:12]} Qf1+ {[%emt 0:00:02]} 50. Kg3 {[%emt 0:00:05]} Qg1+ {[%emt 0:01:09]} 51. Kh3 {[%emt 0:04:48]} 1/2-1/2

[Event "VII Lorca Open 2018"]
[Site "Lorca"]
[Date "2018.12.27"]
[Round "2"]
[White "Arjun Kalyan"]
[Black "Silva Lucena, Cristian"]
[Result "1-0"]
[ECO "C92"]
[WhiteElo "2406"]
[BlackElo "2197"]
[Annotator "NA"]
[PlyCount "77"]
[EventDate "2018.12.26"]
[EventType "swiss"]
[EventCountry "ESP"]
[SourceTitle "playchess.com"]
[Source "ChessBase"]
[SourceQuality "1"]
[TimeControl "5400+30"]

1. e4 {[%emt 0:00:00]} e5 {[%emt 0:00:00]} 2. Nf3 {[%emt 0:00:00]} Nc6 {[%emt 0:00:00]} 3. Bb5 {[%emt 0:00:00]} a6 {[%emt 0:00:11]} 4. Ba4 {[%emt 0:00:00]} Nf6 {[%emt 0:00:09]} 5. O-O {[%emt 0:00:00]} Be7 {[%emt 0:00:07]} 6. Re1 {[%emt 0:00:03]} b5 {[%emt 0:00:14]} 7. Bb3 {[%emt 0:00:04]} d6 {[%emt 0:00:07]} 8. c3 {[%emt 0:00:05]} O-O {[%emt 0:00:07]} 9. h3 {[%emt 0:00:08]} Nd7 {[%emt 0:00:05]} 10. d4 {[%emt 0:01:51]} Bf6 {[%emt 0:00:06]} 11. a4 {[%emt 0:07:46]} Na5 {[%emt 0:00:41] C92: Closed Ruy Lopez: 9...Be6, Karpov and Flohr-Zaitsev Variations} (11... Rb8 12. axb5 axb5 13. d5 Ne7 14. Na3 g6 15. Nc2 Bg7 16. Nb4 Nc5 17. Be3 Nxb3 18. Qxb3 Bd7 19. Ra7 h6 20. c4 c5 21. dxc6 Nxc6 22. Nxc6 Bxc6 {½-½ (42) Mista,A (2588)-Piorun,K (2665) Czech Republic 2016}) 12. Bc2 {[%emt 0:02:53]} b4 {[%emt 0:00:10]} 13. d5 {[%emt 0:04:02]} b3 $146 {[%emt 0:03:15]} ({Predecessor:} 13... bxc3 14. b4 Nb7 15. Nxc3 a5 16. b5 g6 17. Be3 Bg7 18. Qb1 Nb6 19. Ne2 {0-1 (59) Kleinick,M-Hochberg,B corr 1963}) 14. Bxb3 {[%emt 0:02:14]} Nxb3 {[%emt 0:00:03]} 15. Qxb3 {[%emt 0:00:02]} Be7 {[%emt 0:00:10]} 16. Be3 {[%emt 0:08:17]} Rb8 {[%emt 0:02:56]} 17. Qa2 {[%emt 0:01:44]} a5 {[%emt 0:05:14]} 18. Nbd2 {[%emt 0:01:15]} Ba6 {[%emt 0:01:28]} 19. Qb1 {[%emt 0:04:10]} Qe8 {[%emt 0:07:51]} 20. b4 {[%emt 0:04:02]} axb4 {[%emt 0:04:04]} 21. cxb4 {[%emt 0:00:56]} f5 {[%emt 0:00:11]} 22. exf5 {[%emt 0:01:34]} Qf7 {[%emt 0:01:01]} 23. Rc1 {[%emt 0:04:29]} Bd8 {[%emt 0:02:49]} 24. Bg5 {[%emt 0:18:37]} Bxg5 {[%emt 0:06:00]} 25. Nxg5 {[%emt 0:00:05]} Qxd5 {[%emt 0:00:15]} 26. Qa2 {[%emt 0:03:53]} Qxa2 {[%emt 0:08:33]} 27. Rxa2 {[%emt 0:00:01]} Rxf5 {[%emt 0:03:20]} 28. Rxc7 {[%emt 0:01:54]} Nf8 {[%emt 0:01:00]} (28... Rxg5 $16 29. Rxd7 Rxb4 30. Rxd6 Rg6 31. Rxg6 hxg6) 29. Nge4 {[%emt 0:01:13]} Rxb4 {[%emt 0:07:42]} 30. Nxd6 {[%emt 0:00:08]} Rf6 {[%emt 0:00:45]} 31. N2e4 {[%emt 0:00:35]} Rg6 {[%emt 0:00:43]} 32. f3 {[%emt 0:01:05]} h6 {[%emt 0:01:29]} 33. a5 {[%emt 0:00:45]} Rd4 {[%emt 0:01:33]} 34. Nf5 {[%emt 0:01:10]} Rd1+ {[%emt 0:00:33]} 35. Kh2 {[%emt 0:00:01]} Kh7 {[%emt 0:01:07]} 36. Re7 {[%emt 0:02:45]} Bc4 {[%emt 0:09:31]} 37. Rb2 {[%emt 0:01:10]} Ra1 {[%emt 0:01:21]} 38. Rb8 $18 {[%emt 0:01:54]} Ra2 {[%emt 0:04:10]} 39. Nh4 {[%emt 0:02:03]} 1-0